fUSD/lending_fUSD_20250120
["ID","MTS","AMOUNT","RATE_DAILY","PERIOD"]
[349649941,1737357048907,-505.74572268,0.00020972,2]
[349649942,1737357048917,-504.63203894,0.00020972,2]
[349649943,1737357048927,-500.0,0.00020972,2]
[349649944,1737357048937,-504.30943995,0.00020972,2]
[349649945,1737357048949,-499.05057436,0.00020972,2]
[349649946,1737357048959,-500.0,0.00020972,2]
[349649947,1737357048968,-500.0,0.00020972,2]
[349649948,1737357048978,-503.50955874,0.00020972,2]
[349649949,1737357048988,-500.0,0.00020972,2]
[349649950,1737357048998,-500.0,0.00020972,2]
[349649951,1737357049007,-450.0,0.00020972,2]
[349649952,1737357049034,-503.34933631,0.00020972,2]
[349649953,1737357049044,-508.95141672,0.00020972,2]
[349649954,1737357049054,-1216.96,0.00020972,2]
[349649955,1737357049065,-500.0,0.00020972,2]
[349649956,1737357049076,-500.0,0.00020972,2]
[349649957,1737357049086,-643.81406058,0.00020972,2]
[349649958,1737357049096,-501.50112345,0.00020972,2]
[349649959,1737357049106,-506.17874685,0.00020972,2]
[349649960,1737357049117,-503.19179833,0.00020972,2]
[349649961,1737357049127,-500.0,0.00020972,2]
[349649962,1737357049138,-1234.53,0.00020972,2]
[349649963,1737357049147,-500.0,0.00020972,2]
[349649964,1737357049157,-500.0,0.00020972,2]
[349649965,1737357049167,-500.0,0.00020972,2]
[349649966,1737357049177,-500.0,0.00020972,2]
[349649967,1737357049186,-830.7,0.00020972,2]
[349649968,1737357049196,-500.0,0.00020972,2]
[349649969,1737357049206,-500.0,0.00020972,2]
[349649970,1737357049215,-500.0,0.00020972,2]
[349649971,1737357049226,-500.0,0.00020972,2]
[349649972,1737357049237,-500.0,0.00020972,2]
[349649973,1737357049249,-500.0,0.00020972,2]
[349649974,1737357049259,-500.0,0.00020972,2]
[349649975,1737357049270,-500.0,0.00020972,2]
[349649976,1737357049280,-424.35663196,0.00020972,2]
[349649977,1737357049291,-500.0,0.00020972,2]
[349649978,1737357049301,-500.0,0.00020972,2]
[349649979,1737357049311,-500.01003806,0.00020972,2]
[349649980,1737357049321,-503.99089407,0.00020972,2]
[349649981,1737357049330,-500.0,0.00020972,2]
[349649982,1737357049340,-500.0,0.00020972,2]
[349649983,1737357049350,-296.90920668,0.00020972,2]
[349649984,1737357049359,-500.0,0.00020972,2]
[349649985,1737357049368,-500.0,0.00020972,2]
[349649986,1737357049378,-1109.16,0.00020972,2]
[349649987,1737357049387,-500.0,0.00020972,2]
[349649988,1737357049397,-500.0,0.00020972,2]
[349649989,1737357049407,-500.0,0.00020972,2]
[349649990,1737357049416,-1671.15,0.00020972,2]
[349649991,1737357049426,-500.0,0.00020972,2]
[349649992,1737357049435,-500.0,0.00020972,2]
[349649993,1737357049445,-500.0,0.00020972,2]
[349649994,1737357049455,-500.0,0.00020972,2]
[349649995,1737357049464,-508.54556919,0.00020972,2]
[349649996,1737357049474,-506.48442162,0.00020972,2]
[349649997,1737357049483,-500.0,0.00020972,2]
[349649998,1737357049493,-502.76618922,0.00020972,2]
[349649999,1737357049502,-506.63830488,0.00020972,2]
[349650000,1737357049512,-1002.93,0.00020972,2]
[349650001,1737357049521,-500.0,0.00020972,2]
[349650002,1737357049531,-500.0,0.00020972,2]
[349650003,1737357049541,-500.0,0.00020972,2]
[349650004,1737357049563,-283.18005517,0.00020972,2]
[349650005,1737357049574,-500.0,0.00020972,2]
[349650006,1737357049584,-500.0,0.00020972,2]
[349650007,1737357049593,-500.0,0.00020972,2]
[349650008,1737357049603,-1060.61,0.00020972,2]
[349650009,1737357049614,-500.0,0.00020972,2]
[349650010,1737357049624,-500.0,0.00020972,2]
[349650011,1737357049638,-530.38,0.00020972,2]
[349650012,1737357049648,-500.0,0.00020972,2]
[349650013,1737357049657,-1501.55,0.00020972,2]
[349650014,1737357049667,-503.30040621,0.00020972,2]
[349650015,1737357049677,-500.0,0.00020972,2]
[349650016,1737357049686,-432.26606688,0.00020972,2]
[349650017,1737357049695,-505.2532676,0.00020972,2]
[349650018,1737357049705,-561.16867753,0.00020972,2]
[349650019,1737357049715,-500.0,0.00020972,2]
[349650020,1737357049725,-500.0,0.00020972,2]
[349650021,1737357049735,-500.0,0.00020972,2]
[349650022,1737357049745,-1094.93,0.00020972,2]
[349650023,1737357049754,-500.0,0.00020972,2]
[349650024,1737357049764,-500.0,0.00020972,2]
[349650025,1737357049773,-502.32683428,0.00020972,2]
[349650026,1737357049783,-694.63,0.00020972,2]
[349650027,1737357049792,-500.0,0.00020972,2]
[349650028,1737357049802,-500.0,0.00020972,2]
[349650029,1737357049812,-500.0,0.00020972,2]
[349650030,1737357049822,-500.0,0.00020972,2]
[349650031,1737357049832,-500.0,0.00020972,2]
[349650032,1737357049841,-500.0,0.00020972,2]
[349650033,1737357049857,-513.24861768,0.00020972,2]
[349650034,1737357049868,-500.0,0.00020972,2]
[349650035,1737357049877,-500.0,0.00020972,2]
[349650036,1737357050001,-608.95,0.00020972,2]
[349650037,1737357050011,-500.0,0.00020972,2]
[349650038,1737357050020,-504.0806804,0.00020972,2]
[349650039,1737357050029,-511.65941259,0.00020972,2]
[349650040,1737357050044,-500.0,0.00020972,2]
[349650041,1737357050057,-500.0,0.00020972,2]
[349650042,1737357050068,-500.0,0.00020972,2]
[349650043,1737357050082,-500.0,0.00020972,2]
[349650044,1737357050097,-573.88,0.00020972,2]
[349650045,1737357050106,-500.0,0.00020972,2]
[349650046,1737357050117,-514.21137877,0.00020972,2]
[349650047,1737357050127,-500.0,0.00020972,2]
[349650048,1737357050137,-409.88583569,0.00020972,2]
[349650049,1737357050147,-511.91916865,0.00020972,2]
[349650050,1737357050156,-1791.48,0.00020972,2]
[349650051,1737357050165,-764.66,0.00020972,2]
[349650052,1737357050173,-500.0,0.00020972,2]
[349650053,1737357050183,-500.0,0.00020972,2]
[349650054,1737357050192,-500.0,0.00020972,2]
[349650055,1737357050202,-500.0,0.00020972,2]
[349650056,1737357050212,-1222.25,0.00020972,2]
[349650057,1737357050221,-346.98882066,0.00020972,2]
[349650058,1737357050231,-503.61198811,0.00020972,2]
[349650059,1737357050240,-500.0,0.00020972,2]
[349650060,1737357050250,-2337.43,0.00020972,2]
[349650061,1737357050259,-508.03663349,0.00020972,2]
[349650062,1737357050269,-806.28,0.00020972,2]
[349650063,1737357050279,-500.0,0.00020972,2]
[349650064,1737357050288,-500.0,0.00020972,2]
[349650065,1737357050298,-500.0,0.00020972,2]
[349650066,1737357050308,-1684.46,0.00020972,2]
[349650067,1737357050318,-500.0,0.00020972,2]
[349650068,1737357050327,-500.0,0.00020972,2]
[349650069,1737357050337,-3376.09,0.00020972,2]
[349650070,1737357050346,-741.22,0.00020972,2]
[349650071,1737357050355,-536.18516507,0.00020972,2]
[349650072,1737357050364,-500.0,0.00020972,2]
[349650073,1737357050373,-527.593227,0.00020972,2]
[349650074,1737357050383,-500.0,0.00020972,2]
[349650075,1737357050392,-3636.06,0.00020972,2]
[349650076,1737357050401,-2562.36,0.00020972,2]
[349650077,1737357050410,-6332.1,0.00020972,2]
[349650078,1737357050419,-504.34479003,0.00020972,2]
[349650079,1737357050428,-500.0,0.00020972,2]
[349650080,1737357050437,-507.45927865,0.00020972,2]
[349650081,1737357050447,-1118.19,0.00020972,2]
[349650082,1737357050456,-691.41,0.00020972,2]
[349650083,1737357050465,-500.0,0.00020972,2]
[349650084,1737357050474,-5034.92,0.00020972,2]
[349650085,1737357050483,-500.0,0.00020972,2]
[349650086,1737357050492,-500.0,0.00020972,2]
[349650087,1737357050501,-669.71,0.00020972,2]
[349650088,1737357050510,-500.0,0.00020972,2]
[349650089,1737357050520,-625.30516773,0.00020972,2]
[349650090,1737357050529,-500.0,0.00020972,2]
[349650091,1737357050540,-753.19,0.00020972,2]
[349650092,1737357050566,-500.0,0.00020972,2]
[349650093,1737357050576,-500.0,0.00020972,2]
[349650094,1737357050589,-500.0,0.00020972,2]
[349650095,1737357050600,-500.0,0.00020972,2]
[349650096,1737357050611,-500.0,0.00020972,2]
[349650097,1737357050622,-500.0,0.00020972,2]
[349650098,1737357050633,-500.0,0.00020972,2]
[349650099,1737357050648,-1285.62,0.00020972,2]
[349650100,1737357050659,-506.19274385,0.00020972,2]
[349650101,1737357050670,-783.34,0.00020972,2]
[349650102,1737357050683,-500.0,0.00020972,2]
[349650103,1737357050693,-500.0,0.00020972,2]
[349650104,1737357050703,-6472.48,0.00020972,2]
[349650105,1737357050717,-500.0,0.00020972,2]
[349650106,1737357050728,-2685.84,0.00020972,2]
[349650107,1737357050740,-836.18,0.00020972,2]
[349650108,1737357050750,-500.0,0.00020972,2]
[349650109,1737357050761,-500.0,0.00020972,2]
[349650110,1737357050771,-500.0,0.00020972,2]
[349650111,1737357050781,-2128.21,0.00020972,2]
[349650112,1737357050791,-260.57618485,0.00020972,2]
[349650113,1737357050802,-6460.5,0.00020972,2]
[349650114,1737357050813,-618.51,0.00020972,2]
[349650115,1737357050823,-500.0,0.00020972,2]
[349650116,1737357050833,-500.0,0.00020972,2]
[349650117,1737357050843,-500.0,0.00020972,2]
[349650118,1737357050852,-500.0,0.00020972,2]
[349650119,1737357050862,-1585.57,0.00020972,2]
[349650120,1737357050872,-2760.19,0.00020972,2]
[349650121,1737357050882,-500.0,0.00020972,2]
[349650122,1737357050891,-648.95376522,0.00020972,2]
[349650123,1737357050902,-500.0,0.00020972,2]
[349650124,1737357050912,-504.36319951,0.00020972,2]
[349650125,1737357050921,-500.0,0.00020972,2]
[349650126,1737357050931,-500.0,0.00020972,2]
[349650127,1737357050941,-984.05,0.00020972,2]
[349650128,1737357050950,-500.0,0.00020972,2]
[349650129,1737357050960,-1906.35,0.00020972,2]
[349650130,1737357050970,-500.0,0.00020972,2]
[349650131,1737357050980,-524.87896193,0.00020972,2]
[349650132,1737357050990,-503.38536235,0.00020972,2]
[349650133,1737357051000,-500.0,0.00020972,2]
[349650134,1737357051010,-503.63238194,0.00020972,2]
[349650135,1737357051019,-500.0,0.00020972,2]
[349650136,1737357051029,-500.0,0.00020972,2]
[349650137,1737357051039,-500.0,0.00020972,2]
[349650138,1737357051049,-1499.5,0.00020972,2]
[349650139,1737357051059,-500.0,0.00020972,2]
[349650140,1737357051084,-500.0,0.00020972,2]
[349650141,1737357051094,-500.0,0.00020972,2]
[349650142,1737357051104,-2628.34,0.00020972,2]
[349650143,1737357051115,-470.77780338,0.00020972,2]
[349650144,1737357051125,-504.51965514,0.00020972,2]
[349650145,1737357051135,-500.0,0.00020972,2]
[349650146,1737357051145,-520.39,0.00020972,2]
[349650147,1737357051155,-500.0,0.00020972,2]
[349650148,1737357051164,-500.0,0.00020972,2]
[349650149,1737357051174,-435.63147379,0.00020972,2]
[349650150,1737357051183,-506.7372863,0.00020972,2]
[349650151,1737357051193,-1299.48,0.00020972,2]
[349650152,1737357051202,-953.14,0.00020972,2]
[349650153,1737357051211,-506.44884165,0.00020972,2]
[349650154,1737357051220,-500.0,0.00020972,2]
[349650155,1737357051230,-500.0,0.00020972,2]
[349650156,1737357051239,-505.36822828,0.00020972,2]
[349650157,1737357051248,-500.0,0.00020972,2]
[349650158,1737357051257,-500.0,0.00020972,2]
[349650159,1737357051266,-500.0,0.00020972,2]
[349650160,1737357051275,-500.0,0.00020972,2]
[349650161,1737357051284,-500.0,0.00020972,2]
[349650162,1737357051293,-1959.47,0.00020972,2]
[349650163,1737357051303,-500.0,0.00020972,2]
[349650164,1737357051312,-638.46,0.00020972,2]
[349650165,1737357051321,-500.0,0.00020972,2]
[349650166,1737357051331,-500.0,0.00020972,2]
[349650167,1737357051340,-500.0,0.00020972,2]
[349650168,1737357051349,-1350.25,0.00020972,2]
[349650169,1737357051359,-500.0,0.00020972,2]
[349650170,1737357051368,-500.0,0.00020972,2]
[349650171,1737357051377,-500.0,0.00020972,2]
[349650172,1737357051387,-500.0,0.00020972,2]
[349650173,1737357051398,-503.60331159,0.00020972,2]
[349650174,1737357051409,-500.0,0.00020972,2]
[349650175,1737357051418,-500.0,0.00020972,2]
[349650176,1737357051428,-500.0,0.00020972,2]
[349650177,1737357051437,-715.54,0.00020972,2]
[349650178,1737357051446,-501.734046,0.00020972,2]
[349650179,1737357051455,-751.72,0.00020972,2]
[349650180,1737357051464,-1867.69,0.00020972,2]
[349650181,1737357051478,-639.69470344,0.00020972,2]
[349650182,1737357051489,-500.0,0.00020972,2]
[349650183,1737357051497,-504.0599424,0.00020972,2]
[349650184,1737357051507,-503.27432724,0.00020972,2]
[349650185,1737357051515,-503.75784121,0.00020972,2]
[349650186,1737357051525,-514.2757534,0.00020972,2]
[349650187,1737357051534,-506.1732156,0.00020972,2]
[349650188,1737357051544,-500.0,0.00020972,2]
[349650189,1737357051553,-508.34100607,0.00020972,2]
[349650190,1737357051562,-507.94815331,0.00020972,2]
[349650191,1737357051573,-500.0,0.00020972,2]
[349650192,1737357051597,-500.0,0.00020972,2]
[349650193,1737357051606,-506.77973168,0.00020972,2]
[349650194,1737357051615,-500.0,0.00020972,2]
[349650195,1737357051624,-3983.13,0.00020972,2]
[349650196,1737357051640,-509.82213064,0.00020972,2]
[349650197,1737357051649,-500.0,0.00020972,2]
[349650198,1737357051659,-500.0,0.00020972,2]
[349650199,1737357051670,-500.0,0.00020972,2]
[349650200,1737357051680,-504.12950376,0.00020972,2]
[349650201,1737357051690,-500.0,0.00020972,2]
[349650202,1737357051700,-882.09,0.00020972,2]
[349650203,1737357051709,-500.0,0.00020972,2]
[349650204,1737357051719,-500.0,0.00020972,2]
[349650205,1737357051729,-532.71441748,0.00020972,2]
[349650206,1737357051739,-504.93525817,0.00020972,2]
[349650207,1737357051749,-500.0,0.00020972,2]
[349650208,1737357051758,-977.81,0.00020972,2]
[349650209,1737357051768,-500.0,0.00020972,2]
[349650210,1737357051777,-500.0,0.00020972,2]
[349650211,1737357051786,-445.39908647,0.00020972,2]
[349650212,1737357051795,-500.0,0.00020972,2]
[349650213,1737357051805,-500.0,0.00020972,2]
[349650214,1737357051814,-1799.96,0.00020972,2]
[349650215,1737357051823,-438.95729888,0.00020972,2]
[349650216,1737357051832,-500.0,0.00020972,2]
[349650217,1737357051841,-500.0,0.00020972,2]
[349650218,1737357051851,-500.0,0.00020972,2]
[349650219,1737357051860,-500.0,0.00020972,2]
[349650220,1737357051870,-500.0,0.00020972,2]
[349650221,1737357051879,-500.0,0.00020972,2]
[349650222,1737357051888,-500.0,0.00020972,2]
[349650223,1737357051897,-500.0,0.00020972,2]
[349650224,1737357051907,-500.0,0.00020972,2]
[349650225,1737357051916,-500.0,0.00020972,2]
[349650226,1737357051925,-500.0,0.00020972,2]
[349650227,1737357051934,-500.0,0.00020972,2]
[349650228,1737357051944,-500.0,0.00020972,2]
[349650229,1737357051953,-538.21493752,0.00020972,2]
[349650230,1737357051962,-500.0,0.00020972,2]
[349650231,1737357051972,-583.75,0.00020972,2]
[349650232,1737357051980,-500.0,0.00020972,2]
[349650233,1737357051990,-500.0,0.00020972,2]
[349650234,1737357051999,-988.73,0.00020972,2]
[349650235,1737357052008,-511.66537273,0.00020972,2]
[349650236,1737357052017,-500.0,0.00020972,2]
[349650237,1737357052026,-551.55736126,0.00020972,2]
[349650238,1737357052035,-500.0,0.00020972,2]
[349650239,1737357052045,-679.55,0.00020972,2]
[349650240,1737357052054,-775.38,0.00020972,2]
[349650241,1737357052064,-500.0,0.00020972,2]
[349650242,1737357052073,-505.81162997,0.00020972,2]
[349650243,1737357052082,-882.11,0.00020972,2]
[349650244,1737357052216,-1067.99,0.00020972,2]
[349650245,1737357052226,-509.90566785,0.00020972,2]
[349650246,1737357052235,-512.85514586,0.00020972,2]
[349650247,1737357052245,-500.0,0.00020972,2]
[349650248,1737357052254,-500.0,0.00020972,2]
[349650249,1737357052263,-500.0,0.00020972,2]
[349650250,1737357052272,-1944.06,0.00020972,2]
[349650251,1737357052281,-500.0,0.00020972,2]
[349650252,1737357052290,-500.0,0.00020972,2]
[349650253,1737357052299,-619.26035872,0.00020972,2]
[349650254,1737357052308,-430.21552245,0.00020972,2]
[349650255,1737357052318,-166.01032423,0.00020973,2]
[349650256,1737357052328,-500.0,0.00020973,2]
[349650257,1737357052338,-500.0,0.00020973,2]
[349650258,1737357052347,-500.0,0.00020973,2]
[349650259,1737357052356,-500.0,0.00020973,2]
[349650260,1737357052365,-500.0,0.00020973,2]
[349650261,1737357052375,-500.0,0.00020973,2]
[349650262,1737357052384,-571.87,0.00020973,2]
[349650263,1737357052393,-507.37696558,0.00020973,2]
[349650264,1737357052403,-245.53787934,0.00020973,2]
[349650265,1737357052412,-500.0,0.00020973,2]
[349650266,1737357052421,-595.96,0.00020973,2]
[349650267,1737357052430,-505.53640474,0.00020973,2]
[349650268,1737357052440,-505.87756251,0.00020973,2]
[349650269,1737357052449,-240.10488791,0.00020973,2]
[349650270,1737357052458,-500.0,0.00020973,2]
[349650271,1737357052467,-503.22403485,0.00020973,2]
[349650272,1737357052476,-500.0,0.00020973,2]
[349650273,1737357052485,-500.0,0.00020973,2]
[349650274,1737357052494,-500.0,0.00020973,2]
[349650275,1737357052503,-35.47519331,0.00020973,2]
[349650277,1737357052766,-470.01255501,0.00020973,2]
[349650278,1737357052776,-203.41633554,0.00020973,2]
[349650279,1737357052788,-296.58366446,0.00020973,2]
[349650280,1737357052798,-506.43526092,0.00020973,2]
[349650281,1737357052807,-508.70125497,0.00020973,2]
[349650282,1737357052816,-500.0,0.00020973,2]
[349650283,1737357052826,-500.0,0.00020973,2]
[349650284,1737357052835,-505.06600671,0.00020973,2]
[349650285,1737357052844,-500.0,0.00020973,2]
[349650286,1737357052853,-501.6746836,0.00020973,2]
[349650287,1737357052862,-500.0,0.00020973,2]
[349650288,1737357052872,-500.0,0.00020973,2]
[349650289,1737357052881,-500.0,0.00020973,2]
[349650290,1737357052890,-500.0,0.00020973,2]
[349650291,1737357052899,-201.57201272,0.00020973,2]
[349650292,1737357052908,-500.0,0.00020973,2]
[349650293,1737357052917,-500.0,0.00020973,2]
[349650294,1737357052926,-500.0,0.00020973,2]
[349650295,1737357052936,-608.49427626,0.00020973,2]
[349650296,1737357052945,-500.0,0.00020973,2]
[349650297,1737357052954,-500.0,0.00020973,2]
[349650298,1737357052963,-500.0,0.00020973,2]
[349650299,1737357052972,-600.27,0.00020973,2]
[349650300,1737357052980,-501.28186965,0.00020973,2]
[349650301,1737357052990,-500.0,0.00020973,2]
[349650302,1737357052998,-506.93517845,0.00020973,2]
[349650303,1737357053007,-503.00850523,0.00020973,2]
[349650304,1737357053016,-500.0,0.00020973,2]
[349650305,1737357053025,-500.0,0.00020973,2]
[349650306,1737357053034,-500.0,0.00020973,2]
[349650307,1737357053043,-507.22348071,0.00020973,2]
[349650308,1737357053052,-500.0,0.00020973,2]
[349650309,1737357053061,-509.06246888,0.00020973,2]
[349650310,1737357053070,-500.0,0.00020973,2]
[349650311,1737357053078,-504.09006078,0.00020973,2]
[349650312,1737357053087,-500.0,0.00020973,2]
[349650313,1737357053096,-562.86905822,0.00020973,2]
[349650314,1737357053105,-501.75487594,0.00020973,2]
[349650315,1737357053127,-500.0,0.00020973,2]
[349650316,1737357053135,-500.0,0.00020973,2]
[349650317,1737357053145,-500.0,0.00020973,2]
[349650318,1737357053154,-500.0,0.00020973,2]
[349650319,1737357053164,-501.03545457,0.00020973,2]
[349650320,1737357053174,-500.0,0.00020973,2]
[349650321,1737357053183,-567.42,0.00020973,2]
[349650322,1737357053192,-500.0,0.00020973,2]
[349650323,1737357053201,-500.0,0.00020973,2]
[349650324,1737357053210,-500.0,0.00020973,2]
[349650325,1737357053219,-503.58,0.00020973,2]
[349650326,1737357053228,-500.0,0.00020973,2]
[349650327,1737357053238,-405.62680949,0.00020973,2]
[349650328,1737357053247,-500.0,0.00020973,2]
[349650329,1737357053257,-530.80157353,0.00020973,2]
[349650330,1737357053266,-500.0,0.00020973,2]
[349650331,1737357053275,-500.0,0.00020973,2]
[349650332,1737357053285,-503.93658968,0.00020973,2]
[349650333,1737357053295,-500.0,0.00020973,2]
[349650334,1737357053304,-500.0,0.00020973,2]
[349650335,1737357053313,-500.0,0.00020973,2]
[349650336,1737357053323,-500.0,0.00020973,2]
[349650337,1737357053332,-502.25681925,0.00020973,2]
[349650338,1737357053341,-500.0,0.00020973,2]
[349650339,1737357053351,-500.0,0.00020973,2]
[349650340,1737357053361,-500.0,0.00020973,2]
[349650341,1737357053382,-500.0,0.00020973,2]
[349650342,1737357053391,-500.0,0.00020973,2]
[349650343,1737357053400,-500.0,0.00020973,2]
[349650344,1737357053409,-500.0,0.00020973,2]
[349650345,1737357053418,-513.73261753,0.00020973,2]
[349650346,1737357053427,-504.83379701,0.00020973,2]
[349650347,1737357053437,-500.0,0.00020973,2]
[349650348,1737357053446,-500.0,0.00020973,2]
[349650349,1737357053455,-500.0,0.00020973,2]
[349650350,1737357053465,-500.0,0.00020973,2]
[349650351,1737357053474,-511.76167704,0.00020973,2]
[349650352,1737357053484,-500.0,0.00020973,2]
[349650353,1737357053493,-500.0,0.00020973,2]
[349650354,1737357053502,-500.0,0.00020973,2]
[349650355,1737357053511,-500.0,0.00020973,2]
[349650356,1737357053520,-500.0,0.00020973,2]
[349650357,1737357053529,-500.0,0.00020973,2]
[349650358,1737357053538,-502.81069035,0.00020973,2]
[349650359,1737357053548,-503.7056372,0.00020973,2]
[349650360,1737357053557,-503.7200035,0.00020973,2]
[349650361,1737357053565,-500.0,0.00020973,2]
[349650362,1737357053575,-151.03874766,0.00020973,2]
[349650363,1737357053584,-503.37592142,0.00020973,2]
[349650364,1737357053593,-500.0,0.00020973,2]
[349650365,1737357053603,-500.0,0.00020973,2]
[349650366,1737357053617,-500.0,0.00020973,2]
[349650367,1737357053626,-500.0,0.00020973,2]
[349650368,1737357053636,-500.0,0.00020973,2]
[349650369,1737357053649,-500.0,0.00020973,2]
[349650370,1737357053659,-504.06719493,0.00020973,2]
[349650371,1737357053668,-507.9925735,0.00020973,2]
[349650372,1737357053677,-500.0,0.00020973,2]
[349650373,1737357053688,-500.0,0.00020973,2]
[349650374,1737357053698,-819.46,0.00020973,2]
[349650375,1737357053707,-1241.57,0.00020973,2]
[349650376,1737357053716,-553.61,0.00020973,2]
[349650377,1737357053726,-508.85865316,0.00020973,2]
[349650378,1737357053735,-509.61055531,0.00020973,2]
[349650379,1737357053859,-466.0829842,0.00020973,2]
[349650380,1737357053875,-506.78429934,0.00020973,2]
[349650381,1737357053885,-500.0,0.00020973,2]
[349650382,1737357053896,-507.66056457,0.00020973,2]
[349650383,1737357053905,-555.22,0.00020973,2]
[349650384,1737357053915,-505.45440037,0.00020973,2]
[349650385,1737357053924,-505.17874274,0.00020973,2]
[349650386,1737357053933,-500.0,0.00020973,2]
[349650387,1737357053942,-1069.58,0.00020973,2]
[349650388,1737357053951,-500.0,0.00020973,2]
[349650389,1737357053960,-913.82,0.00020973,2]
[349650390,1737357053969,-500.0,0.00020973,2]
[349650391,1737357053979,-566.41218512,0.00020973,2]
[349650392,1737357053988,-500.0,0.00020973,2]
[349650393,1737357053997,-610.64,0.00020973,2]
[349650394,1737357054007,-500.0,0.00020973,2]
[349650395,1737357054018,-500.0,0.00020973,2]
[349650396,1737357054028,-500.0,0.00020973,2]
[349650397,1737357054039,-728.27,0.00020973,2]
[349650398,1737357054048,-500.0,0.00020973,2]
[349650399,1737357054062,-1109.51,0.00020973,2]
[349650400,1737357054077,-500.0,0.00020973,2]
[349650401,1737357054087,-504.09,0.00020973,2]
[349650402,1737357054097,-4.24851183,0.00020973,2]
[349650403,1737357054141,-495.75148817,0.00020973,2]
[349650404,1737357054151,-500.0,0.00020973,2]
[349650405,1737357054160,-500.0,0.00020973,2]
[349650406,1737357054170,-500.0,0.00020973,2]
[349650407,1737357054180,-500.0,0.00020973,2]
[349650408,1737357054189,-500.0,0.00020973,2]
[349650409,1737357054199,-500.0,0.00020973,2]
[349650410,1737357054208,-500.0,0.00020973,2]
[349650411,1737357054217,-500.0,0.00020973,2]
[349650412,1737357054226,-500.0,0.00020973,2]
[349650413,1737357054235,-500.0,0.00020973,2]
[349650414,1737357054244,-500.0,0.00020973,2]
[349650415,1737357054254,-500.0,0.00020973,2]
[349650416,1737357054263,-500.0,0.00020973,2]
[349650417,1737357054273,-500.0,0.00020973,2]
[349650418,1737357054283,-500.0,0.00020973,2]
[349650419,1737357054292,-500.0,0.00020973,2]
[349650420,1737357054301,-500.0,0.00020973,2]
[349650421,1737357054310,-649.09978445,0.00020973,2]
[349650422,1737357054319,-60.24104064,0.00020973,2]
[349650423,1737357054378,-1322.04895936,0.00020973,2]
[349650424,1737357054388,-1723.55,0.00020973,2]
[349650425,1737357054398,-690.52126539,0.00020973,2]
[349650426,1737357054409,-1124.34873461,0.00020973,2]
[349650427,1737357054419,-500.0,0.00020973,2]
[349650428,1737357054428,-500.0,0.00020973,2]
[349650429,1737357054437,-500.0,0.00020973,2]
[349650430,1737357054447,-844.53,0.00020973,2]
[349650431,1737357054456,-872.38,0.00020973,2]
[349650432,1737357054466,-500.0,0.00020973,2]
[349650433,1737357054476,-618.61,0.00020973,2]
[349650434,1737357054485,-500.0,0.00020973,2]
[349650435,1737357054494,-1230.29,0.00020973,2]
[349650436,1737357054503,-943.42,0.00020973,2]
[349650437,1737357054512,-1172.08,0.00020973,2]
[349650438,1737357054521,-1416.41,0.00020973,2]
[349650439,1737357054530,-500.0,0.00020973,2]
[349650440,1737357054539,-500.0,0.00020973,2]
[349650441,1737357054548,-755.21,0.00020973,2]